bitfinex-derivatives/quotes_ETHF0:USTF0_20250807
["timestamp","ask_amount","ask_price","bid_price","bid_amount"]
[1754526335062,0.9528,3667.7,3667.6,0.7271]
[1754526335371,1.5587,3667.7,3667.6,3.00907909]
[1754526335565,42.5526,3667.7,3667.6,3.00907909]
[1754526335770,0.7904,3667.7,3667.6,3.00907909]
[1754526335968,1.2548,3667.7,3667.6,3.00907909]
[1754526336167,1.5587,3667.7,3667.6,3.00907909]
[1754526336372,1.7526,3667.7,3667.6,3.00907909]
[1754526336875,20.3186,3668.1,3668.0,0.9358]
[1754526337469,20.3186,3668.1,3668.0,0.414]
[1754526337865,1.7526,3668.1,3668.0,2.72237909]
[1754526338060,1.7526,3668.1,3668.0,3.00907909]
[1754526339173,42.5526,3668.1,3668.0,3.00907909]
[1754526339768,42.5526,3668.1,3667.9,0.54516]
[1754526339969,1.7526,3667.0,3666.9,4.71992]
[1754526340169,1.7526,3667.0,3666.9,3.75312]
[1754526340467,1.7526,3667.0,3666.9,4.68892]
[1754526341073,1.7526,3667.0,3666.9,5.00202]
[1754526341274,1.7526,3667.0,3666.9,5.28872]
[1754526346277,0.4884,3667.0,3666.9,5.28872]
[1754526346479,1.7526,3667.3,3667.2,1.5356]
[1754526346679,1.7526,3667.3,3667.2,3.00907909]
[1754526347480,1.7526,3667.3,3667.2,2.72237909]
[1754526347677,1.7526,3667.3,3667.2,3.00907909]
[1754526349188,0.54521,3667.6,3667.2,0.54526]
[1754526349392,0.6823,3667.0,3666.8,0.54532]
[1754526349773,1.7526,3666.9,3666.8,0.54532]
[1754526349980,42.5526,3666.9,3666.8,0.54532]
[1754526351114,1.7526,3666.8,3666.7,0.54534]
[1754526352094,1.7526,3666.8,3666.7,0.95934]
[1754526352289,1.7526,3666.8,3666.7,1.48114]
[1754526352893,1.7526,3666.8,3666.7,1.55454]
[1754526353095,1.7526,3666.8,3666.7,2.08094]
[1754526353282,1.7526,3666.8,3666.7,1.79424]
[1754526353780,1.7526,3666.8,3666.7,2.08094]
[1754526353781,1.0703,3666.8,3666.7,2.08094]
[1754526353980,1.5587,3666.8,3666.7,2.08094]
[1754526354181,1.7526,3666.8,3666.7,2.08094]
[1754526354392,1.7526,3666.8,3666.7,1.48114]
[1754526354995,1.7526,3666.8,3666.7,2.08094]
[1754526355890,1.7526,3666.8,3666.7,0.95934]
[1754526356089,1.7526,3666.8,3666.6,1.47347909]
[1754526356291,40.8,3666.9,3666.4,3.75318]
[1754526356292,1.7526,3666.6,3666.4,3.75318]
[1754526356499,1.7526,3666.5,3666.4,3.2078]
[1754526356789,1.7526,3666.4,3666.3,2.01887909]
[1754526357082,1.7526,3666.4,3666.3,2.50677909]
[1754526357290,1.7526,3666.4,3666.3,2.95467909]
[1754526357884,1.7526,3666.4,3666.3,3.26777909]
[1754526358078,1.7526,3666.4,3666.3,3.55447909]
[1754526358483,1.7526,3666.4,3666.3,3.26777909]
[1754526358679,1.31174,3666.8,3666.3,2.43287909]
[1754526358888,1.7439,3666.5,3666.4,0.9137]
[1754526359688,1.7439,3666.5,3666.4,1.5293]
[1754526361490,1.7439,3666.5,3666.4,3.00277909]
[1754526364183,41.0957,3666.9,3666.4,1.99527909]
[1754526364382,1.7414,3666.5,3666.4,5.92736909]
[1754526364782,1.7414,3666.5,3666.4,3.55826909]
[1754526365181,0.6863,3666.7,3666.6,0.54536]
[1754526365390,1.7414,3666.7,3666.6,2.08466]
[1754526365892,0.982,3666.7,3666.6,2.08466]
[1754526366389,1.7414,3666.7,3666.6,2.08466]
[1754526366586,1.4457,3667.0,3666.9,0.7007]
[1754526366793,1.4457,3667.0,3666.9,3.01277909]
[1754526367294,1.7414,3667.0,3666.9,3.01277909]
[1754526368893,0.6863,3666.8,3666.7,3.75315]
[1754526369091,1.7414,3666.8,3666.7,4.28495]
[1754526369290,1.7414,3666.8,3666.7,4.67685]
[1754526369994,1.7414,3666.8,3666.7,5.29245]
[1754526370791,1.7414,3666.8,3666.7,4.98565]
[1754526371094,1.7414,3666.8,3666.7,1.77785]
[1754526371688,1.7414,3666.8,3666.7,2.08465]
[1754526372393,1.7414,3666.8,3666.7,5.29245]
[1754526372790,41.8551,3667.3,3667.2,1.77777]
[1754526372989,41.8551,3667.3,3667.2,2.08457]
[1754526375593,41.8551,3667.3,3667.2,0.93717]
[1754526375797,41.8551,3667.3,3667.2,0.54527]
[1754526377298,41.8551,3667.3,3667.2,1.46897]
[1754526377905,41.8551,3667.3,3667.2,1.22867]
[1754526378088,41.8551,3667.3,3667.2,0.93717]
[1754526378402,1.7414,3667.2,3667.1,0.54528]
[1754526378901,1.7414,3667.2,3667.1,1.46898]
[1754526379095,1.7414,3667.2,3667.1,1.77578]
[1754526379293,1.7414,3667.2,3667.1,2.08458]
[1754526379791,1.4302,3667.2,3667.1,2.08458]
[1754526379994,1.7414,3667.2,3667.1,2.08458]
[1754526380300,1.7414,3667.2,3667.1,0.54528]
[1754526380698,1.7414,3667.2,3667.1,1.46898]
[1754526380892,1.7414,3667.2,3667.1,1.77778]
[1754526381100,1.7414,3667.2,3667.1,2.08458]
[1754526382801,0.5817,3667.2,3667.1,2.08458]
[1754526382990,1.7414,3667.2,3667.1,2.08458]
[1754526383702,40.8,3667.3,3667.1,1.77778]
[1754526383902,1.0551,3667.2,3667.1,1.24598]
[1754526384095,1.7414,3667.2,3667.1,1.24598]
[1754526384508,1.7414,3667.2,3667.1,2.08458]
[1754526385803,1.4302,3668.4,3668.3,1.24581]
[1754526386098,1.66402051,3668.9,3668.8,1.2325]
[1754526386403,1.42731639,3668.9,3668.8,1.5393]
[1754526386599,43.28241639,3668.9,3668.8,1.2325]
[1754526387805,43.28241639,3668.9,3668.8,1.5393]
[1754526389500,42.22731639,3668.9,3668.8,1.5393]
[1754526390006,1.42731639,3668.9,3668.8,1.5393]
[1754526390298,2.6434369,3669.2,3669.1,2.05869]
[1754526390506,42.98522051,3669.2,3669.1,3.53216909]
[1754526390702,44.0142369,3669.2,3669.1,3.53216909]
[1754526390897,40.8,3669.2,3669.1,3.53216909]
[1754526391100,1.4955,3669.2,3669.1,3.53216909]
[1754526391301,1.7029,3669.2,3669.1,3.53216909]
[1754526391700,40.8,3669.4,3669.1,2.68426909]
[1754526391899,41.0887,3669.4,3669.3,2.05866]
[1754526392200,41.8092,3669.4,3669.3,2.05866]
[1754526392805,41.5212,3669.4,3669.3,2.05866]
[1754526393101,41.0887,3669.4,3669.3,2.05866]
[1754526393307,40.8,3669.4,3669.3,2.05866]
[1754526393901,41.5212,3669.4,3669.3,2.05866]
[1754526394105,41.8092,3669.4,3669.3,2.05866]
[1754526395307,0.6937,3669.7,3669.6,0.92501]
[1754526395507,1.7029,3669.7,3669.6,2.40557909]
[1754526395708,42.5029,3669.7,3669.6,2.40557909]
[1754526396611,42.5029,3669.7,3669.6,2.98717909]
[1754526399311,0.6937,3669.3,3669.2,0.92507]
[1754526399516,1.7029,3669.3,3669.2,2.63844909]
[1754526399811,1.7029,3669.3,3669.2,2.95054909]
[1754526400013,1.7029,3669.3,3669.2,3.23624909]
[1754526400215,1.7029,3669.3,3669.2,3.53214909]
[1754526401011,0.2887,3669.3,3669.2,3.53214909]
[1754526401212,0.775,3669.3,3669.2,3.53214909]
[1754526401412,1.7029,3669.3,3669.2,3.53214909]
[1754526405926,0.5715,3669.3,3669.2,3.53214909]
[1754526406126,1.4955,3669.3,3669.2,3.53214909]
[1754526406720,1.0092,3669.5,3669.2,3.53214909]
[1754526406921,1.2166,3669.4,3669.3,2.05866]
[1754526407225,1.7029,3669.4,3669.3,3.53213909]
[1754526408026,1.7029,3669.4,3669.3,3.23623909]
[1754526408224,1.7029,3669.4,3669.3,2.01843909]
[1754526408425,1.7029,3669.4,3669.3,2.95053909]
[1754526408625,1.7029,3669.4,3669.3,2.01843909]
[1754526409019,1.7029,3669.4,3669.3,2.71063909]
[1754526409328,1.7029,3669.4,3669.3,3.53213909]
[1754526409829,1.7029,3669.6,3669.5,2.05862]
[1754526410028,1.7029,3669.6,3669.5,0.55924138]
[1754526410222,1.7029,3669.6,3669.5,0.74984138]
[1754526410825,1.7029,3669.6,3669.5,1.49134138]
[1754526411026,1.7029,3669.6,3669.5,1.78724138]
[1754526411829,1.7029,3669.6,3669.5,2.07294138]
[1754526413229,1.7029,3669.9,3669.8,1.50658]
[1754526413526,1.7029,3669.9,3669.8,2.05858]
[1754526413727,42.5029,3669.9,3669.8,2.05858]
[1754526414123,42.5029,3669.9,3669.8,2.07290138]
[1754526417732,42.5029,3669.9,3669.8,0.93930138]
[1754526417924,42.5029,3669.9,3669.8,0.55920138]
[1754526418926,42.5029,3669.9,3669.8,1.17790138]
[1754526419127,42.5029,3669.9,3669.8,2.09870138]
[1754526421430,42.5029,3669.9,3669.8,1.79770138]
[1754526421929,42.5029,3669.9,3669.8,1.48870138]
[1754526422730,42.5029,3669.9,3669.8,1.17790138]
[1754526423236,42.5029,3669.9,3669.8,2.09870138]
[1754526423730,42.52322282,3669.9,3669.8,0.55920138]
[1754526423930,49.27272282,3669.9,3669.5,3.75272]
[1754526424135,1.7404,3669.6,3669.5,3.2078]
[1754526424833,42.5404,3669.6,3669.5,3.2078]
[1754526425333,42.5404,3669.6,3669.5,4.1524]
[1754526427031,42.5404,3669.6,3669.5,3.8995]
[1754526427231,42.5404,3669.6,3669.5,4.4614]
[1754526427934,42.5404,3669.6,3669.5,3.5887]
[1754526428129,42.5404,3669.6,3669.5,3.3992]
[1754526428734,42.5404,3669.6,3669.5,3.2078]
[1754526428934,42.5404,3669.6,3669.5,3.5887]
[1754526429235,42.5404,3669.6,3669.5,3.2078]
[1754526429540,1.7404,3669.2,3669.1,3.75279]
[1754526430334,1.7404,3669.2,3669.1,4.25499]
[1754526430733,1.7404,3669.2,3669.1,4.69739]
[1754526431131,1.7404,3669.2,3669.1,5.30739]
[1754526432835,59.43,3669.6,3669.4,2.09953]
[1754526433034,40.8,3669.6,3669.5,2.16337909]
[1754526433236,41.8496,3669.6,3669.5,3.02807909]
[1754526435239,41.8496,3669.6,3669.5,2.72707909]
[1754526435541,41.8496,3669.6,3669.5,3.02807909]
[1754526436843,41.8496,3669.6,3669.5,2.41807909]
[1754526437836,41.1001,3669.6,3669.5,3.02807909]
[1754526438232,41.5672,3669.6,3669.5,3.02807909]
[1754526438447,41.8496,3669.6,3669.5,3.02807909]
[1754526438748,40.8,3669.6,3669.5,3.02807909]
[1754526439141,41.8496,3669.6,3669.5,3.02807909]
[1754526439748,41.5672,3669.6,3669.5,3.02807909]
[1754526440343,41.8496,3669.6,3669.5,3.02807909]
[1754526440949,1.4403,3669.8,3669.7,0.6899]
[1754526441150,1.7404,3669.8,3669.7,3.02907909]
[1754526441943,0.9732,3669.8,3669.7,3.02907909]
[1754526442144,42.0824,3670.0,3669.8,0.54488]
[1754526442450,41.8,3670.0,3669.9,1.5556]
[1754526442643,1.0,3670.0,3669.9,1.5556]
[1754526442947,1.9909,3670.0,3669.9,1.5556]
[1754526443844,1.6908,3670.0,3669.9,1.5556]
[1754526444050,1.4873,3670.0,3669.9,1.5556]
[1754526445051,1.7404,3670.4,3670.3,2.10041]
[1754526445241,0.2819,3670.4,3670.3,2.10041]
[1754526446952,0.7672,3670.6,3670.5,1.23468]
[1754526447249,1.2545,3670.6,3670.5,2.10038]
[1754526447444,0.2824,3670.8,3670.5,3.57385909]
[1754526447646,0.7678,3670.8,3670.7,2.31075]
[1754526447945,0.9732,3670.8,3670.7,2.31075]
[1754526448457,4.181,3671.1,3671.0,2.31071]
[1754526448751,0.6908,3671.6,3671.0,2.24857909]
[1754526448945,0.6908,3671.6,3671.5,1.47347909]
[1754526449146,41.4908,3671.6,3671.5,1.47347909]
[1754526449649,42.5387,3671.6,3671.5,1.77717909]
[1754526450550,1.7387,3671.6,3671.5,1.77717909]
[1754526450750,1.447,3671.6,3671.5,2.47377909]
[1754526450951,1.447,3671.6,3671.5,3.22967909]
[1754526452650,1.2605,3672.1,3672.0,1.04376]
[1754526452954,1.4569,3672.1,3672.0,3.77423909]
[1754526454155,1.7486,3672.1,3672.0,2.52453909]
[1754526454355,1.7486,3672.1,3672.0,1.77717909]
[1754526454955,1.7486,3672.1,3672.0,1.97997909]
[1754526455252,1.4569,3672.1,3672.0,3.22967909]
[1754526459057,1.4569,3672.1,3672.0,1.97997909]
[1754526459257,1.7486,3672.1,3672.0,1.47347909]
[1754526459457,1.7486,3672.1,3671.9,0.54457]
[1754526459654,0.7007,3672.0,3671.8,0.54459]
[1754526459861,1.7486,3671.9,3671.8,1.05109]
[1754526460457,1.7486,3671.9,3671.8,2.10339]
[1754526460661,1.7486,3671.9,3671.8,2.30079]
[1754526460856,0.8057,3671.9,3671.8,1.54489]
[1754526461160,1.4569,3671.9,3671.8,2.30079]
[1754526461360,1.7486,3671.9,3671.8,2.30079]
[1754526462153,1.7486,3671.9,3671.8,1.99189]
[1754526462859,1.7486,3671.9,3671.8,2.30079]
[1754526463060,1.4569,3671.9,3671.8,2.30079]
[1754526464561,0.54451,3672.4,3671.8,2.30079]
[1754526464765,1.4569,3672.2,3672.1,3.77421909]
[1754526465062,1.4569,3671.7,3671.6,3.2078]
[1754526465261,0.7007,3671.4,3671.3,0.54466]
[1754526465562,1.7486,3671.4,3671.3,0.84836]
[1754526465752,1.7486,3671.4,3671.3,0.3037]
[1754526466260,1.7486,3671.4,3671.3,0.8029]
[1754526466453,1.7486,3671.4,3671.3,1.7562]
[1754526466660,1.4569,3671.4,3671.3,1.7562]
[1754526469660,1.24527,3671.9,3671.8,0.2028]
[1754526469865,1.7486,3671.9,3671.8,1.4473]
[1754526470055,1.4569,3671.9,3671.8,1.7562]
[1754526477975,0.8057,3671.9,3671.8,1.7562]
[1754526478473,3.9085,3672.2,3672.1,0.6966]
[1754526478669,0.1964,3672.2,3672.1,3.22967909]
[1754526479268,0.9605,3672.2,3672.1,3.22967909]
[1754526479469,1.2615,3672.2,3672.1,3.22967909]
[1754526481871,0.505,3672.2,3672.1,3.22967909]
[1754526482077,0.4973,3672.2,3672.1,3.22377909]
[1754526482271,0.73963567,3672.8,3672.5,0.54447]
[1754526482479,0.73963567,3672.8,3672.5,0.83607]
[1754526482673,0.73963567,3672.8,3672.7,1.47347909]
[1754526482878,1.4464,3672.8,3672.7,3.19877909]
[1754526483873,3.94743567,3672.9,3672.7,3.19877909]
[1754526483874,3.94743567,3672.9,3672.8,1.23514]
[1754526484179,3.94743567,3672.9,3672.8,2.26974]
[1754526484180,3.2078,3672.9,3672.8,2.26974]
[1754526486081,1.0,3673.0,3672.9,0.9823]
[1754526486279,1.0,3673.0,3672.9,1.7253]
[1754526487475,3.2078,3673.5,3673.4,0.6907]
[1754526487674,3.2078,3673.5,3673.4,3.74312909]
[1754526488278,4.9376,3673.5,3673.4,0.54435]
[1754526488483,4.9376,3673.5,3673.4,0.83595]
[1754526488885,1.7298,3673.5,3673.4,2.50262909]
[1754526489186,1.4464,3673.5,3673.4,3.43852909]
[1754526489388,1.4464,3673.7,3673.6,2.26961]
[1754526489681,1.4464,3673.7,3673.6,3.74308909]
[1754526491588,1.7298,3673.7,3673.6,2.79608909]
[1754526492089,1.4464,3673.7,3673.6,3.74308909]
[1754526495992,1.2538,3673.7,3673.6,3.74308909]
[1754526499403,1.4464,3674.0,3673.9,2.26958]
[1754526499604,1.4464,3674.0,3673.9,3.74305909]
[1754526499902,1.7298,3674.0,3673.9,3.74305909]
[1754526500609,1.7298,3674.0,3673.9,3.43845909]
[1754526502701,1.7298,3674.0,3673.6,1.47347909]
[1754526502907,1.7298,3673.6,3673.5,0.83592]
[1754526504208,1.7298,3673.6,3673.5,1.02912]
[1754526504909,1.7298,3673.6,3673.5,1.32262]
[1754526505111,1.7298,3673.6,3673.5,2.26962]
[1754526505513,1.4464,3673.6,3673.5,2.26962]
[1754526507812,1.7298,3673.6,3673.5,2.30939909]
[1754526508314,1.7298,3673.6,3673.5,2.50259909]
[1754526508612,1.7298,3673.6,3673.5,2.79609909]
[1754526508814,1.7298,3673.6,3673.5,3.52789909]
[1754526509010,1.7298,3673.6,3673.5,3.23449909]
[1754526509312,1.7298,3673.6,3673.5,2.30939909]
[1754526509508,1.7298,3673.6,3673.5,2.01779909]
[1754526510103,1.7298,3673.6,3673.5,2.31719909]
[1754526511114,1.7298,3673.6,3673.5,2.83129909]
[1754526511714,1.7298,3673.6,3673.5,3.26939909]
[1754526512408,1.7298,3673.6,3673.5,3.56279909]
[1754526513815,1.7298,3673.6,3673.5,3.77079909]
[1754526515413,1.4464,3673.6,3673.5,3.77079909]
[1754526528424,1.7371,3673.6,3673.5,3.77079909]
[1754526531024,1.4464,3673.6,3673.5,3.77079909]
[1754526549744,1.3996,3673.8,3673.7,1.046]
[1754526550041,1.6891,3673.8,3673.7,1.4687]
[1754526550937,1.6891,3673.8,3673.7,0.5443]
[1754526551137,1.6891,3673.7,3673.6,19.39322]
[1754526551338,1.6891,3673.7,3673.6,19.59702]
[1754526551941,1.6891,3673.7,3673.6,20.01972]
[1754526552637,1.6891,3673.7,3673.6,20.59452]
[1754526552945,1.6891,3673.7,3673.6,20.80202]
[1754526553143,1.6891,3673.7,3673.6,20.80102]
[1754526554144,1.3996,3673.7,3673.6,2.25102]
[1754526554445,1.6891,3673.7,3673.6,20.80102]
[1754526556043,1.3996,3673.7,3673.6,20.80102]
[1754526557945,0.4944,3673.7,3673.6,20.80102]
[1754526558145,1.2047,3673.7,3673.6,20.80102]
[1754526558745,1.3996,3673.7,3673.6,20.80102]
[1754526558942,0.74117727,3673.9,3673.6,19.79302]
[1754526559240,0.9072,3673.9,3673.8,2.71647909]
[1754526559450,1.23557727,3674.2,3674.1,1.24295]
[1754526559746,1.52337727,3674.2,3674.1,2.25095]
[1754526559941,1.2047,3674.2,3674.1,2.25095]
[1754526560141,1.2047,3674.2,3674.1,3.72442909]
[1754526561348,0.4944,3674.2,3674.1,3.72442909]
[1754526561645,0.1969,3674.2,3674.1,3.72442909]
[1754526561842,1.70782727,3674.8,3674.3,0.54421]
[1754526562042,1.70782727,3674.8,3674.7,3.18017909]
[1754526562043,1.3996,3674.8,3674.7,3.18017909]
[1754526562242,0.74117727,3674.9,3674.7,3.72432909]
[1754526562445,1.2047,3674.8,3674.7,3.72432909]
[1754526562939,1.3996,3674.8,3674.7,3.72432909]
[1754526563140,1.3996,3674.8,3674.7,3.18017909]
[1754526564345,4.4125,3675.0,3674.9,1.7067]
[1754526564650,1.2047,3675.0,3674.9,0.6987]
[1754526564851,1.3996,3675.0,3674.9,0.6987]
[1754526565036,1.3996,3675.0,3674.9,1.7067]
[1754526565445,0.2878,3675.3,3675.2,0.54409]
[1754526565638,1.3996,3675.3,3675.2,3.18017909]
[1754526567149,1.6891,3675.3,3675.2,2.47007909]
[1754526567347,1.6891,3675.3,3675.2,2.89277909]
[1754526567549,1.6891,3675.3,3675.2,3.18017909]
[1754526568654,1.3996,3675.3,3675.2,3.18017909]
[1754526568848,1.2047,3675.3,3675.2,3.18017909]
[1754526569245,1.4086,3675.3,3675.2,1.97517909]
[1754526569550,1.2047,3675.3,3675.2,3.20567909]
[1754526569854,4.7454,3675.8,3675.7,1.5269]
[1754526570148,5.5066,3675.8,3675.7,3.00037909]
[1754526570447,1.4711,3675.8,3675.7,3.20567909]
[1754526573250,1.0,3676.0,3675.7,2.72217909]
[1754526573453,0.9574,3675.9,3675.8,1.7322]
[1754526573751,1.1613,3675.9,3675.8,2.91577909]
[1754526573951,1.7548,3675.9,3675.8,2.91577909]
[1754526574449,1.7548,3675.9,3675.8,3.20567909]
[1754526574647,1.2515,3675.9,3675.8,2.91577909]
[1754526574851,1.4711,3675.9,3675.8,3.20567909]
[1754526576451,1.7548,3675.9,3675.8,3.20567909]
[1754526578054,1.0,3676.0,3675.8,2.27157909]
[1754526578253,1.4711,3675.9,3675.8,3.20567909]
[1754526578848,1.0,3676.0,3675.9,0.4389]
[1754526579153,2.7548,3676.0,3675.9,1.0034]
[1754526579354,2.7548,3676.0,3675.9,1.4423]
[1754526580055,2.4711,3676.0,3675.9,1.7322]
[1754526580748,1.7612,3676.0,3675.9,1.7322]
[1754526580954,2.4711,3676.0,3675.9,1.7322]
[1754526581651,1.0,3676.0,3675.9,1.7322]
[1754526586556,4.6789,3676.6,3676.5,2.27609]
[1754526586756,4.9626,3676.6,3676.5,2.71047909]
[1754526587457,4.9626,3676.6,3676.5,3.20567909]
[1754526587655,4.6789,3676.6,3676.5,3.20567909]
[1754526588753,3.2078,3677.0,3676.9,0.54383]
[1754526588953,3.2078,3677.0,3676.9,3.74950909]
[1754526589153,0.7612,3677.3,3677.2,0.54379]
[1754526589456,1.0197,3677.8,3677.7,0.54372]
[1754526589660,1.4711,3677.8,3677.7,3.74939909]
[1754526589860,1.7548,3677.8,3677.7,3.74939909]
[1754526590055,0.8158,3677.8,3677.7,3.74939909]
[1754526590262,0.4514,3678.2,3678.1,0.2987]
[1754526590459,1.4711,3678.2,3678.1,2.90697909]
[1754526590654,1.4711,3678.2,3678.1,3.20567909]
[1754526590854,3.7138,3678.3,3678.2,2.27584]
[1754526591053,1.4711,3678.3,3678.2,2.27584]
[1754526591356,0.506,3678.5,3678.4,0.7047]
[1754526591560,1.4711,3678.5,3678.4,2.17817909]
[1754526591764,0.7099,3678.7,3678.6,1.24827]
[1754526591956,1.4711,3678.7,3678.6,1.7322]
[1754526593259,0.7099,3678.4,3678.2,0.2987]
[1754526593461,0.7099,3677.6,3677.5,0.2987]
[1754526593659,1.7548,3677.6,3677.5,0.9406]
[1754526593856,1.7548,3677.6,3677.5,1.237]
[1754526594058,1.7548,3677.6,3677.5,1.7322]
[1754526594355,1.4711,3677.6,3677.5,1.7322]
[1754526595360,1.4711,3677.6,3677.5,20.2832]
[1754526598064,1.4711,3678.1,3678.0,0.7047]
[1754526598261,1.4711,3678.1,3678.0,1.7322]
[1754526598462,1.7548,3678.1,3678.0,1.7322]
[1754526599365,1.25357,3678.1,3677.8,1.47347909]
[1754526599556,1.7498,3677.6,3677.5,1.78177909]
[1754526599761,1.7498,3677.6,3677.5,21.76897909]
[1754526600061,1.459,3677.6,3677.5,21.76897909]
[1754526600870,1.459,3677.6,3677.5,21.77297909]
[1754526601669,1.459,3677.6,3677.5,21.77097909]
[1754526601966,1.459,3677.6,3677.5,3.22497909]
[1754526602167,1.459,3677.6,3677.5,21.76997909]
[1754526602369,1.7498,3677.6,3677.5,21.76997909]
[1754526602562,1.2595,3677.6,3677.5,21.76997909]
[1754526602764,1.2595,3677.6,3677.5,21.76797909]
[1754526603066,0.7985,3677.6,3677.5,21.76797909]
[1754526603263,4.6668,3677.9,3677.8,0.7042]
[1754526603462,4.6668,3677.9,3677.8,3.22497909]
[1754526603671,4.6668,3677.9,3677.8,21.76797909]
[1754526604769,3.7065,3677.9,3677.8,21.76797909]
[1754526605071,4.6668,3677.9,3677.8,21.76797909]
[1754526605870,5.50129,3677.9,3677.8,19.5575]
[1754526606174,4.9576,3677.9,3677.8,19.7876]
[1754526606370,4.9576,3677.9,3677.8,1.7515]
[1754526606564,4.9576,3677.9,3677.8,19.9912]
[1754526607267,0.998,3677.9,3677.8,20.3015]
[1754526607672,1.459,3677.9,3677.8,20.3015]
[1754526613468,1.459,3678.2,3678.1,2.29514]
[1754526614568,0.7985,3678.2,3678.1,1.98484]
[1754526614873,1.459,3678.4,3678.3,1.24782]
[1754526615069,2.19302164,3678.4,3678.3,2.72129909]
[1754526615261,2.19302164,3678.4,3678.3,3.76859909]
[1754526615572,1.459,3678.4,3678.3,3.76859909]
[1754526616274,3.2078,3678.5,3678.3,3.76859909]
[1754526616470,3.6997,3678.5,3678.4,20.2955]
[1754526616774,4.4673,3678.5,3678.4,20.2955]
[1754526616973,4.6668,3678.5,3678.4,20.2955]
[1754526617374,4.6668,3678.5,3678.4,1.7515]
[1754526617568,4.9576,3678.5,3678.4,20.2935]
[1754526617764,1.7498,3678.5,3678.4,20.2935]
[1754526617974,1.459,3678.5,3678.4,20.2935]
[1754526618381,2.19302164,3678.5,3678.4,20.2935]
[1754526618572,1.459,3678.5,3678.4,0.8139]
[1754526618874,2.48382164,3678.5,3678.4,19.7836]
[1754526619074,1.7498,3678.5,3678.4,19.9822]
[1754526619268,2.48382164,3678.5,3678.4,20.2925]
[1754526619463,2.19302164,3678.5,3678.4,20.2925]
[1754526619670,2.19720227,3678.5,3678.4,20.2925]
[1754526619971,0.73820227,3678.5,3678.4,20.2925]
[1754526620674,1.99770227,3678.5,3678.4,20.2925]
[1754526621271,1.2595,3678.5,3678.4,20.2925]
[1754526621572,1.459,3678.5,3678.4,20.2925]
[1754526621968,2.19720227,3678.5,3678.4,20.2925]
[1754526622268,1.7498,3678.5,3678.4,19.5465]
[1754526622464,2.48800227,3678.5,3678.4,19.5465]
[1754526622663,1.7498,3678.5,3678.4,20.2855]
[1754526622874,1.459,3678.5,3678.4,20.2855]
[1754526623069,2.19720227,3678.5,3678.4,20.2855]
[1754526623265,1.459,3678.5,3678.4,20.2855]
[1754526623476,2.19720227,3678.5,3678.4,20.2855]
[1754526623775,1.459,3678.5,3678.4,20.2855]
[1754526623974,2.19720227,3678.5,3678.4,20.2855]
[1754526624169,1.459,3678.5,3678.4,20.2855]
[1754526626678,0.6982,3678.5,3678.4,0.3083]
[1754526626874,0.6982,3678.5,3678.4,18.8343]
[1754526627084,1.459,3678.5,3678.4,18.8343]
[1754526627380,0.54358,3678.7,3678.4,19.9672]
[1754526627574,0.73820227,3678.9,3678.7,1.7515]
[1754526627774,0.73820227,3679.1,3678.8,2.29505]
[1754526627978,4.18552051,3679.3,3678.8,2.29505]
[1754526627979,1.73820227,3679.0,3678.9,3.22497909]
[1754526628179,1.3066,3679.0,3678.9,3.22497909]
[1754526628380,2.7498,3679.0,3678.9,3.22497909]
[1754526629282,2.4202,3679.0,3678.9,3.22497909]
[1754526630083,2.4202,3679.0,3678.9,2.48597909]
[1754526630384,1.4809,3679.0,3678.9,3.23827909]
[1754526630784,2.2018,3679.0,3678.9,3.23827909]
[1754526630984,2.3957,3679.0,3678.9,3.23827909]
[1754526635189,1.0,3679.0,3678.9,3.23827909]
[1754526637382,1.1109,3679.8,3679.7,1.2184]
[1754526637582,1.404,3679.8,3679.7,3.08387909]
[1754526637982,0.2931,3679.8,3679.7,3.08387909]
[1754526638287,1.7122,3679.8,3679.7,3.08387909]
[1754526638789,1.7122,3679.8,3679.7,21.62187909]
[1754526639383,1.7122,3679.8,3679.3,3.2078]
[1754526639683,0.6874,3679.6,3679.5,0.54344]
[1754526639885,1.7122,3679.6,3679.5,1.04404]
[1754526640284,1.7122,3679.6,3679.5,1.84764]
[1754526640484,1.7122,3679.6,3679.5,20.38164]
[1754526641089,1.7122,3679.6,3679.5,1.84764]
[1754526641285,1.7122,3679.6,3679.5,20.38064]
[1754526642192,1.7122,3679.6,3679.5,20.68684]
[1754526642491,1.404,3679.6,3679.5,20.68684]
[1754526642687,0.9762,3680.1,3680.0,0.73698]
[1754526642892,1.7122,3680.1,3680.0,3.62725909]
[1754526644890,1.404,3680.1,3680.0,3.62725909]
[1754526645094,0.6874,3680.1,3680.0,3.62725909]
[1754526646093,0.2931,3680.1,3680.0,3.62725909]
[1754526646793,0.9956,3680.4,3680.3,1.6104]
[1754526647089,0.9956,3680.4,3680.3,6.29167909]
[1754526647090,1.7122,3680.4,3680.3,6.29167909]
[1754526647689,0.6874,3680.7,3680.6,0.73688]
[1754526647994,1.223,3680.7,3680.6,22.16215909]
[1754526648288,1.42339235,3681.2,3681.1,0.1936]
[1754526648490,0.6874,3681.2,3681.1,0.5006]
[1754526648691,0.6874,3681.2,3681.1,0.1936]
[1754526648997,0.6874,3681.2,3681.1,1.3042]
[1754526649489,1.7122,3681.2,3681.1,1.3042]
[1754526650286,1.7122,3681.2,3681.1,0.9888]
[1754526650683,3.2078,3681.3,3681.0,1.47347909]
[1754526650888,0.97772051,3682.2,3681.0,1.47347909]
[1754526650889,0.7758,3681.1,3681.0,0.54322]
[1754526651096,1.7122,3681.1,3681.0,21.54049909]
[1754526651290,3.2078,3681.7,3681.0,21.54049909]
[1754526651291,0.4278,3681.6,3681.5,0.54315]
[1754526651588,1.7122,3681.6,3681.5,1.66707909]
[1754526651794,1.7122,3681.6,3681.5,2.47067909]